fUSD/lending_fUSD_20240630
["ID","MTS","AMOUNT","RATE_DAILY","PERIOD"]
[330757646,1719757848662,-500.0,0.00013999,2]
[330757647,1719757848673,-628.98934018,0.00013999,2]
[330757648,1719757848685,-2990.50036596,0.00013999,2]
[330757649,1719757848715,-11356.31233505,0.00013999,2]
[330757650,1719757848731,-3263.40959113,0.00013999,2]
[330757651,1719757848743,-612.67,0.00013999,2]
[330757652,1719757848758,-53238.27040526,0.00013999,2]
[330757653,1719757848769,-7584.0,0.00013999,2]
[330757654,1719757848780,-281.00881241,0.00013999,2]
[330757655,1719757848816,-1981.0,0.00013999,2]
[330757656,1719757848827,-4660.92624026,0.00013999,2]
[330757657,1719757848840,-333.55822375,0.00013999,2]
[330757658,1719757848853,-811.34468112,0.00013999,2]
[330757661,1719757881297,151.0,0.00020469,120]
[330757680,1719758191738,151.0,0.00020469,120]
[330757698,1719758343732,300.0,0.00011199,2]
[330757722,1719758403470,150.0,0.00011199,2]
[330757723,1719758403892,150.0,0.00011199,2]
[330757724,1719758404107,211.44859975,0.00011199,2]
[330757725,1719758418163,500.0,0.0002189,120]
[330757726,1719758427710,500.0,0.0002189,120]
[330757727,1719758438903,500.0,0.0002189,120]
[330757728,1719758449249,500.0,0.0002189,120]
[330757729,1719758458860,500.0,0.0002189,120]
[330757730,1719758467817,500.0,0.0002189,120]
[330757731,1719758478213,527.09,0.00010598,2]
[330757732,1719758482547,548.39,0.0002189,120]
[330757733,1719758523468,3789.55797518,0.00011199,2]
[330757740,1719758602031,18230.54779869,0.00011199,2]
[330757746,1719758783680,18193.27669091,0.00011199,2]
[330757747,1719758800333,339.45186376,0.00011199,2]
[330757748,1719758810003,151.0,0.00020469,120]
[330757750,1719758850380,2200.02980555,0.00011199,2]
[330757752,1719758910100,1706.01053776,0.00011199,2]
[330757757,1719758963151,-250.0,0.00012244,2]
[330757758,1719758963172,-200.0,0.00012257,2]
[330757759,1719758963193,-500.0,0.00012257,2]
[330757760,1719758963214,-1000.0,0.0001228,2]
[330757761,1719758963236,-250.0,0.00012298,2]
[330757762,1719758963256,-637.3383,0.00012302,2]
[330757764,1719759008673,500.0,0.0002189,120]
[330757767,1719759029694,155.0,0.00011199,2]
[330757769,1719759031993,-317.65,0.00012302,2]
[330757770,1719759032007,-380.03886704,0.00012302,2]
[330757776,1719759032752,-286.55,0.00012302,2]
[330757777,1719759032765,-286.13410863,0.00012302,2]
[330757778,1719759032775,-150.0,0.00012308,2]
[330757779,1719759032784,-310.0,0.00012314,2]
[330757780,1719759032794,-1309.82636645,0.00012496,2]
[330757781,1719759032902,-86.24363355,0.00012496,2]
[330757782,1719759032913,-346.33574824,0.00012521,2]
[330757783,1719759032925,-262.20425176,0.00012521,2]
[330757784,1719759032934,-300.0,0.00012535,2]
[330757785,1719759032944,-300.0,0.00012535,2]
[330757786,1719759032953,-172.96997542,0.00012536,2]
[330757787,1719759033052,-797.37400748,0.00012536,2]
[330757788,1719759033063,-819.28,0.00012536,2]
[330757789,1719759033076,-22110.3760171,0.00012536,2]
[330757790,1719759033086,-1773.33,0.00012536,2]
[330757791,1719759033096,-194.76,0.00012546,2]
[330757792,1719759033106,-299.99,0.00012546,2]
[330757793,1719759033116,-499.99,0.00012548,2]
[330757794,1719759033126,-150.0,0.00012548,2]
[330757795,1719759033136,-155.89,0.00012643,2]
[330757796,1719759033146,-1003.56,0.00012643,2]
[330757797,1719759033156,-155.89,0.0001269,2]
[330757798,1719759033165,-155.89,0.00012738,2]
[330757799,1719759033175,-155.89,0.00012785,2]
[330757800,1719759033185,-155.89,0.00012832,2]
[330757801,1719759033195,-527.09,0.00012862,2]
[330757802,1719759033205,-155.89,0.00012879,2]
[330757803,1719759033214,-155.89,0.00012926,2]
[330757804,1719759033223,-155.89,0.00012973,2]
[330757805,1719759033232,-164.78,0.00012996,2]
[330757806,1719759033242,-164.38,0.00012996,2]
[330757807,1719759033254,-155.89,0.0001302,2]
[330757808,1719759033264,-155.89,0.00013067,2]
[330757809,1719759033274,-150.0,0.00013078,2]
[330757810,1719759033283,-155.89,0.00013114,2]
[330757811,1719759033293,-1041.5749294,0.00013128,2]
[330757812,1719759033303,-1070.42703277,0.00013128,2]
[330757814,1719759033312,-167.57,0.0001316,2]
[330757816,1719759033322,-155.89,0.00013161,2]
[330757818,1719759033331,-150.0,0.00013178,2]
[330757820,1719759033341,-164.78,0.00013178,2]
[330757822,1719759033351,-150.0,0.00013178,2]
[330757824,1719759033361,-150.0,0.00013178,2]
[330757826,1719759033370,-164.78,0.00013178,2]
[330757828,1719759033380,-150.0,0.00013178,2]
[330757829,1719759033390,-155.89,0.00013208,2]
[330757831,1719759033400,-155.89,0.00013255,2]
[330757832,1719759033411,-155.89,0.00013302,2]
[330757833,1719759033420,-418.84,0.00013378,2]
[330757834,1719759033430,-1013.16514783,0.00013472,2]
[330757835,1719759033439,-1054.51068328,0.00013516,2]
[330757836,1719759033449,-1286.44742731,0.00013516,2]
[330757837,1719759033460,-790.0369789,0.00013543,2]
[330757838,1719759033469,-753.70840975,0.00013543,2]
[330757839,1719759033479,-334.5742,0.00013599,2]
[330757840,1719759033489,-1000.0,0.00013606,2]
[330757841,1719759033499,-2218.0335,0.00013671,2]
[330757842,1719759033509,-157.48,0.00013699,2]
[330757843,1719759033518,-538.02,0.00013699,2]
[330757844,1719759033529,-291.29,0.00013699,2]
[330757845,1719759033538,-5809.07,0.00013699,2]
[330757846,1719759033548,-500.0,0.00013706,3]
[330757847,1719759033557,-500.0,0.00013706,3]
[330757848,1719759033567,-500.0,0.00013706,3]
[330757849,1719759033577,-334.62,0.00013706,3]
[330757850,1719759033587,-525.45,0.00013706,3]
[330757851,1719759033597,-500.0,0.00013706,3]
[330757852,1719759033606,-500.0,0.00013706,3]
[330757853,1719759033616,-500.0,0.00013706,3]
[330757854,1719759033626,-500.0,0.00013706,3]
[330757855,1719759033635,-500.0,0.00013706,3]
[330757856,1719759033645,-500.0,0.00013706,3]
[330757857,1719759033655,-500.0,0.00013706,3]
[330757858,1719759033664,-500.0,0.00013706,3]
[330757859,1719759033674,-500.0,0.00013706,3]
[330757860,1719759033683,-500.0,0.00013706,3]
[330757861,1719759033692,-500.0,0.00013706,3]
[330757862,1719759033703,-237.95,0.00013706,3]
[330757863,1719759033712,-500.0,0.00013706,3]
[330757864,1719759033722,-500.0,0.00013706,3]
[330757865,1719759033731,-500.0,0.00013706,3]
[330757866,1719759033742,-500.0,0.00013706,3]
[330757867,1719759033751,-500.0,0.00013706,3]
[330757868,1719759033762,-500.0,0.00013706,3]
[330757869,1719759033772,-500.0,0.00013706,3]
[330757870,1719759033783,-500.0,0.00013706,3]
[330757871,1719759033793,-500.0,0.00013706,3]
[330757872,1719759033804,-500.0,0.00013706,3]
[330757873,1719759033813,-500.0,0.00013706,3]
[330757874,1719759033823,-500.0,0.00013706,3]
[330757875,1719759033833,-500.0,0.00013706,3]
[330757876,1719759033843,-500.0,0.00013706,3]
[330757877,1719759033853,-500.0,0.00013706,3]
[330757878,1719759033863,-500.0,0.00013706,3]
[330757879,1719759033872,-500.0,0.00013706,3]
[330757880,1719759033882,-500.0,0.00013706,3]
[330757881,1719759033891,-500.0,0.00013706,3]
[330757882,1719759033902,-500.0,0.00013706,3]
[330757883,1719759033912,-500.0,0.00013706,3]
[330757884,1719759033922,-1616.54,0.00013706,3]
[330757885,1719759033931,-500.0,0.00013706,3]
[330757886,1719759033941,-500.0,0.00013706,3]
[330757887,1719759033951,-500.0,0.00013706,3]
[330757888,1719759033960,-500.0,0.00013706,3]
[330757889,1719759033974,-500.0,0.00013706,3]
[330757890,1719759033984,-397.57,0.00013706,3]
[330757891,1719759033994,-500.0,0.00013706,3]
[330757892,1719759034004,-500.0,0.00013706,3]
[330757893,1719759034015,-500.0,0.00013706,3]
[330757894,1719759034024,-500.0,0.00013706,3]
[330757895,1719759034035,-295.30698031,0.00013706,3]
[330757896,1719759034045,-500.0,0.00013706,3]
[330757897,1719759034056,-500.0,0.00013706,3]
[330757898,1719759034066,-500.0,0.00013706,3]
[330757899,1719759034075,-158.79,0.00013706,3]
[330757900,1719759034085,-500.0,0.00013706,3]
[330757901,1719759034095,-500.0,0.00013706,3]
[330757902,1719759034325,-500.0,0.00013706,3]
[330757903,1719759034336,-500.0,0.00013706,3]
[330757904,1719759034346,-523.16393894,0.00013706,3]
[330757905,1719759034356,-500.0,0.00013706,3]
[330757906,1719759034365,-500.0,0.00013706,3]
[330757907,1719759034375,-500.0,0.00013706,3]
[330757908,1719759034384,-500.0,0.00013706,3]
[330757909,1719759034394,-500.0,0.00013706,3]
[330757910,1719759034404,-500.0,0.00013706,3]
[330757911,1719759034414,-500.0,0.00013706,3]
[330757912,1719759034424,-500.0,0.00013706,3]
[330757913,1719759034434,-500.0,0.00013706,3]
[330757914,1719759034443,-500.0,0.00013706,3]
[330757915,1719759034454,-500.0,0.00013706,3]
[330757916,1719759034463,-500.0,0.00013706,3]
[330757917,1719759034473,-655.58,0.00013706,3]
[330757918,1719759034483,-500.0,0.00013706,3]
[330757919,1719759034492,-606.97,0.00013706,3]
[330757920,1719759034503,-500.0,0.00013706,3]
[330757921,1719759034512,-500.0,0.00013706,3]
[330757922,1719759034522,-557.72,0.00013706,3]
[330757923,1719759034532,-500.0,0.00013706,3]
[330757924,1719759034541,-500.0,0.00013706,3]
[330757925,1719759034551,-500.0,0.00013706,3]
[330757926,1719759034560,-500.0,0.00013706,3]
[330757927,1719759034569,-500.0,0.00013706,3]
[330757928,1719759034579,-708.73,0.00013706,3]
[330757929,1719759034588,-500.0,0.00013706,3]
[330757930,1719759034598,-453.38452356,0.00013706,3]
[330757931,1719759034612,-46.61547644,0.00013706,3]
[330757932,1719759034622,-500.0,0.00013706,3]
[330757933,1719759034631,-389.3808535,0.00013706,3]
[330757934,1719759034644,-110.6191465,0.00013706,3]
[330757935,1719759034655,-500.0,0.00013706,3]
[330757936,1719759034666,-44.98797756,0.00013706,3]
[330757937,1719759034695,-455.01202244,0.00013706,3]
[330757938,1719759034704,-401.74,0.00013706,3]
[330757939,1719759034714,-500.0,0.00013706,3]
[330757940,1719759034723,-500.0,0.00013706,3]
[330757941,1719759034734,-500.0,0.00013706,3]
[330757942,1719759034743,-500.0,0.00013706,3]
[330757943,1719759034752,-500.0,0.00013706,3]
[330757944,1719759034761,-500.0,0.00013706,3]
[330757945,1719759034771,-500.0,0.00013706,3]
[330757946,1719759034780,-500.0,0.00013706,3]
[330757947,1719759034790,-500.0,0.00013706,3]
[330757948,1719759034799,-500.0,0.00013706,3]
[330757949,1719759034810,-500.0,0.00013706,3]
[330757950,1719759034820,-500.0,0.00013706,3]
[330757951,1719759034830,-500.0,0.00013706,3]
[330757952,1719759034839,-500.0,0.00013706,3]
[330757953,1719759034849,-500.0,0.00013706,3]
[330757954,1719759034860,-500.0,0.00013706,3]
[330757955,1719759034870,-500.0,0.00013706,3]
[330757956,1719759034879,-500.0,0.00013706,3]
[330757957,1719759034889,-500.0,0.00013706,3]
[330757958,1719759034899,-500.0,0.00013706,3]
[330757959,1719759034910,-500.0,0.00013706,3]
[330757960,1719759034920,-500.0,0.00013706,3]
[330757961,1719759034929,-500.0,0.00013706,3]
[330757962,1719759034939,-73.19321996,0.00013706,3]
[330757964,1719759038374,-767.65230678,0.00013706,3]
[330757965,1719759038386,-520.96447326,0.00013706,3]
[330757966,1719759038396,-500.0,0.00013706,3]
[330757967,1719759038408,-500.0,0.00013706,3]
[330757968,1719759038419,-500.0,0.00013706,3]
[330757969,1719759038430,-500.0,0.00013706,3]
[330757970,1719759038441,-500.0,0.00013706,3]
[330757971,1719759038451,-500.0,0.00013706,3]
[330757972,1719759038461,-500.0,0.00013706,3]
[330757973,1719759038471,-500.0,0.00013706,3]
[330757974,1719759038481,-500.0,0.00013706,3]
[330757975,1719759038491,-500.0,0.00013706,3]
[330757976,1719759038500,-500.0,0.00013706,3]
[330757977,1719759038511,-500.0,0.00013706,3]
[330757978,1719759038520,-500.0,0.00013706,3]
[330757979,1719759038530,-500.0,0.00013706,3]
[330757980,1719759038539,-0.12552674,0.00013706,3]
[330757981,1719759038830,-499.87447326,0.00013706,3]
[330757983,1719759038840,-500.0,0.00013706,3]
[330757985,1719759038850,-500.0,0.00013706,3]
[330757987,1719759038859,-500.0,0.00013706,3]
[330757989,1719759038868,-2500.0,0.00013707,2]
[330757991,1719759038878,-420.0,0.00013753,2]
[330757993,1719759038888,-463.5,0.00013771,2]
[330757995,1719759038897,-1042.97756141,0.00013799,2]
[330757996,1719759038906,-173.80868065,0.00013802,2]
[330757998,1719759038918,-258.61409544,0.00013802,2]
[330758000,1719759038928,-500.0,0.00013806,3]
[330758002,1719759038938,-500.0,0.00013806,3]
[330758005,1719759038948,-500.0,0.00013806,3]
[330758007,1719759038958,-500.0,0.00013807,3]
[330758009,1719759038967,-500.0,0.00013807,3]
[330758011,1719759038982,-500.0,0.00013807,3]
[330758013,1719759038992,-500.0,0.00013807,3]
[330758015,1719759039001,-500.0,0.00013807,3]
[330758017,1719759039011,-500.0,0.00013807,3]
[330758018,1719759039022,-500.0,0.00013807,3]
[330758020,1719759039033,-500.0,0.00013807,3]
[330758022,1719759039044,-649.83,0.00013807,3]
[330758025,1719759039056,-500.0,0.00013807,3]
[330758027,1719759039067,-500.0,0.00013807,3]
[330758029,1719759039077,-500.0,0.00013807,3]
[330758031,1719759039088,-500.0,0.00013807,3]
[330758033,1719759039098,-500.0,0.00013807,3]
[330758035,1719759039109,-608.0,0.00013807,3]
[330758037,1719759039120,-500.0,0.00013807,3]
[330758038,1719759039130,-500.0,0.00013807,3]
[330758041,1719759039141,-500.0,0.00013807,3]
[330758043,1719759039151,-500.0,0.00013807,3]
[330758045,1719759039162,-500.0,0.00013807,3]
[330758047,1719759039172,-1408.39517921,0.00013807,3]
[330758136,1719759040100,-359.44640036,0.00013807,3]
[330758153,1719759040259,-397.96842043,0.00013807,3]
[330758155,1719759040269,-500.0,0.00013807,3]
[330758157,1719759040279,-500.0,0.00013807,3]
[330758159,1719759040288,-322.7079492,0.00013807,3]
[330758161,1719759040299,-177.2920508,0.00013807,3]
[330758163,1719759040309,-1110.32957032,0.00013807,3]
[330758176,1719759040426,-11860.20042968,0.00013807,3]
[330758177,1719759040436,-500.0,0.00013807,3]
[330758179,1719759040446,-17.57757032,0.00013807,3]
[330758182,1719759040462,-400.07483383,0.00013807,3]
[330758184,1719759040474,-82.34759585,0.00013807,3]
[330758186,1719759040483,-500.0,0.00013807,3]
[330758188,1719759040494,-500.0,0.00013807,3]
[330758190,1719759040503,-500.0,0.00013807,3]
[330758192,1719759040513,-500.0,0.00013807,3]
[330758194,1719759040523,-1300.21,0.00013807,3]
[330758196,1719759040534,-656.32,0.00013807,3]
[330758198,1719759040544,-1073.9,0.00013807,3]
[330758200,1719759040553,-500.0,0.00013807,3]
[330758202,1719759040564,-500.0,0.00013807,3]
[330758204,1719759040574,-500.0,0.00013807,3]
[330758206,1719759040584,-520.83,0.00013807,3]
[330758208,1719759040594,-500.0,0.00013807,3]
[330758210,1719759040603,-500.0,0.00013807,3]
[330758212,1719759040613,-500.0,0.00013807,3]
[330758214,1719759040623,-500.0,0.00013807,3]
[330758216,1719759040633,-500.0,0.00013807,3]
[330758218,1719759040642,-600.44,0.00013807,3]
[330758220,1719759040651,-500.0,0.00013807,3]
[330758222,1719759040662,-500.0,0.00013807,3]
[330758223,1719759040672,-974.46,0.00013807,3]
[330758225,1719759040682,-500.0,0.00013807,3]
[330758227,1719759040692,-500.0,0.00013807,3]
[330758230,1719759040707,-500.0,0.00013807,3]
[330758232,1719759040717,-500.0,0.00013815,3]
[330758234,1719759040727,-500.0,0.00013815,3]
[330758235,1719759040737,-500.0,0.00013815,3]
[330758237,1719759040747,-513.85,0.00013815,3]
[330758239,1719759040756,-1377.64240415,0.00013815,3]
[330758242,1719759040768,-750.72000001,0.00013815,3]
[330758244,1719759040779,-362.90759584,0.00013815,3]
[330758246,1719759040788,-500.0,0.00013815,3]
[330758247,1719759040798,-293.77240416,0.00013815,3]
[330758248,1719759040820,-206.22759584,0.00013815,3]
[330758249,1719759040831,-484.47,0.00013815,3]
[330758250,1719759040840,-229.80767537,0.00013815,3]
[330758251,1719759040852,-270.19232463,0.00013815,3]
[330758252,1719759040862,-776.8,0.00013815,3]
[330758253,1719759040872,-147.49118905,0.00013815,3]
[330758254,1719759040883,-165.35908849,0.00013815,3]
[330758255,1719759040892,-500.0,0.00013815,3]
[330758256,1719759040902,-500.0,0.00013815,3]
[330758258,1719759040913,-500.0,0.00013815,3]
[330758261,1719759040923,-500.0,0.00013815,3]
[330758264,1719759040933,-500.0,0.00013815,3]
[330758266,1719759040942,-500.0,0.00013815,3]
[330758268,1719759040951,-500.0,0.00013815,3]
[330758271,1719759040963,-500.0,0.00013815,3]
[330758272,1719759040972,-500.0,0.00013815,3]
[330758275,1719759040982,-500.0,0.00013815,3]
[330758276,1719759040994,-500.0,0.00013815,3]
[330758278,1719759041007,-500.0,0.00013815,3]
[330758280,1719759041017,-500.0,0.00013815,3]
[330758282,1719759041026,-500.0,0.00013815,3]
[330758284,1719759041036,-500.0,0.00013815,3]
[330758286,1719759041046,-1029.4,0.00013815,3]
[330758288,1719759041055,-500.0,0.00013815,3]
[330758291,1719759041070,-500.0,0.00013815,3]
[330758293,1719759041079,-500.0,0.00013815,3]
[330758295,1719759041089,-500.0,0.00013815,3]
[330758297,1719759041097,-500.0,0.00013815,3]
[330758299,1719759041107,-500.0,0.00013815,3]
[330758301,1719759041116,-500.0,0.00013815,3]
[330758302,1719759041126,-500.0,0.00013815,3]
[330758304,1719759041135,-500.0,0.00013815,3]
[330758306,1719759041144,-412.48551265,0.00013815,3]
[330758309,1719759041154,-500.0,0.00013815,3]
[330758310,1719759041165,-500.0,0.00013815,3]
[330758312,1719759041174,-500.0,0.00013815,3]
[330758314,1719759041184,-567.77,0.00013815,3]
[330758316,1719759041193,-500.0,0.00013815,3]
[330758318,1719759041202,-500.0,0.00013815,3]
[330758320,1719759041211,-500.0,0.00013815,3]
[330758322,1719759041221,-500.0,0.00013815,3]
[330758325,1719759041230,-500.0,0.00013815,3]
[330758327,1719759041239,-500.0,0.00013815,3]
[330758329,1719759041250,-500.0,0.00013815,3]
[330758331,1719759041260,-500.0,0.00013815,3]
[330758332,1719759041269,-500.0,0.00013815,3]
[330758334,1719759041279,-500.0,0.00013815,3]
[330758336,1719759041288,-1000.0,0.00013815,2]
[330758338,1719759041298,-500.0,0.00013816,3]
[330758341,1719759041308,-413.09,0.00013816,3]
[330758342,1719759041318,-500.0,0.00013816,3]
[330758345,1719759041328,-500.0,0.00013816,3]
[330758347,1719759041338,-500.0,0.00013816,3]
[330758349,1719759041347,-500.0,0.00013816,3]
[330758351,1719759041356,-500.0,0.00013816,3]
[330758352,1719759041365,-500.0,0.00013816,3]
[330758354,1719759041375,-500.0,0.00013816,3]
[330758356,1719759041384,-500.0,0.00013816,3]
[330758359,1719759041394,-500.0,0.00013816,3]
[330758360,1719759041403,-500.0,0.00013816,3]
[330758363,1719759041413,-500.0,0.00013816,3]
[330758364,1719759041422,-237.95,0.00013816,3]
[330758366,1719759041431,-500.0,0.00013816,3]
[330758368,1719759041441,-500.0,0.00013816,3]
[330758370,1719759041450,-500.0,0.00013816,3]
[330758372,1719759041460,-500.0,0.00013816,3]
[330758374,1719759041469,-500.0,0.00013816,3]
[330758376,1719759041478,-426.37,0.00013816,3]
[330758378,1719759041487,-599.58,0.00013816,3]
[330758380,1719759041497,-500.0,0.00013816,3]
[330758382,1719759041506,-500.0,0.00013816,3]
[330758384,1719759041515,-500.0,0.00013816,3]
[330758386,1719759041525,-500.0,0.00013816,3]
[330758388,1719759041534,-500.0,0.00013816,3]
[330758390,1719759041544,-500.0,0.00013816,3]
[330758392,1719759041553,-500.0,0.00013816,3]
[330758394,1719759041563,-500.0,0.00013816,3]
[330758396,1719759041573,-500.0,0.00013816,3]
[330758398,1719759041583,-500.0,0.00013816,3]
[330758400,1719759041592,-500.0,0.00013816,3]
[330758402,1719759041601,-500.0,0.00013816,3]
[330758404,1719759041611,-500.0,0.00013816,3]
[330758406,1719759041620,-492.7,0.00013816,3]
[330758408,1719759041629,-1616.54,0.00013816,3]
[330758410,1719759041639,-500.0,0.00013816,3]
[330758413,1719759041648,-500.0,0.00013816,3]
[330758415,1719759041658,-500.0,0.00013816,3]
[330758416,1719759041667,-500.0,0.00013816,3]
[330758418,1719759041677,-500.0,0.00013816,3]
[330758421,1719759041687,-500.0,0.00013816,3]
[330758422,1719759041697,-570.52,0.00013816,3]
[330758424,1719759041706,-500.0,0.00013816,3]
[330758426,1719759041715,-500.0,0.00013816,3]
[330758428,1719759041724,-500.0,0.00013816,3]
[330758430,1719759041734,-500.0,0.00013816,3]
[330758432,1719759041744,-500.0,0.00013816,3]
[330758434,1719759041754,-500.0,0.00013816,3]
[330758436,1719759041763,-500.0,0.00013816,3]
[330758438,1719759041773,-500.0,0.00013816,3]
[330758441,1719759041784,-500.0,0.00013816,3]
[330758442,1719759041793,-500.0,0.00013816,3]
[330758444,1719759041802,-560.83,0.00013816,3]
[330758468,1719759042015,-500.0,0.00013816,3]
[330758470,1719759042025,-500.0,0.00013816,3]
[330758472,1719759042035,-500.0,0.00013816,3]
[330758475,1719759042044,-500.0,0.00013816,3]
[330758476,1719759042054,-500.0,0.00013816,3]
[330758478,1719759042064,-500.0,0.00013816,3]
[330758481,1719759042077,-500.0,0.00013816,3]
[330758482,1719759042087,-500.0,0.00013816,3]
[330758485,1719759042096,-500.0,0.00013816,3]
[330758487,1719759042106,-500.0,0.00013816,3]
[330758489,1719759042115,-655.58,0.00013816,3]
[330758491,1719759042124,-479.33,0.00013816,3]
[330758493,1719759042134,-500.0,0.00013816,3]
[330758494,1719759042144,-628.33,0.00013816,3]
[330758497,1719759042154,-500.0,0.00013816,3]
[330758499,1719759042164,-500.0,0.00013816,3]
[330758500,1719759042174,-500.0,0.00013816,3]
[330758503,1719759042183,-500.0,0.00013816,3]
[330758504,1719759042192,-500.0,0.00013816,3]
[330758507,1719759042203,-708.73,0.00013816,3]
[330758509,1719759042212,-500.0,0.00013816,3]
[330758510,1719759042222,-500.0,0.00013816,3]
[330758513,1719759042231,-500.0,0.00013816,3]
[330758514,1719759042242,-500.0,0.00013816,3]
[330758517,1719759042254,-551.2,0.00013816,3]
[330758518,1719759042263,-500.0,0.00013816,3]
[330758520,1719759042273,-500.0,0.00013816,3]
[330758522,1719759042282,-500.0,0.00013816,3]
[330758524,1719759042291,-500.0,0.00013816,3]
[330758526,1719759042300,-525.13,0.00013816,3]
[330758528,1719759042310,-500.0,0.00013816,3]
[330758531,1719759042319,-500.0,0.00013816,3]
[330758532,1719759042328,-500.0,0.00013816,3]
[330758535,1719759042337,-500.0,0.00013816,3]
[330758537,1719759042347,-244.67325314,0.00013816,3]
[330758539,1719759042356,-500.0,0.00013816,3]
[330758540,1719759042366,-500.0,0.00013816,3]
[330758543,1719759042375,-500.0,0.00013816,3]
[330758544,1719759042385,-500.0,0.00013816,3]
[330758547,1719759042395,-500.0,0.00013816,3]
[330758549,1719759042405,-500.0,0.00013816,3]
[330758550,1719759042415,-500.0,0.00013816,3]
[330758552,1719759042424,-500.0,0.00013816,3]
[330758554,1719759042433,-500.0,0.00013816,3]
[330758557,1719759042443,-500.0,0.00013816,3]
[330758559,1719759042452,-500.0,0.00013816,3]
[330758560,1719759042461,-500.0,0.00013816,3]
[330758563,1719759042471,-500.0,0.00013816,3]
[330758564,1719759042480,-500.0,0.00013816,3]
[330758567,1719759042490,-1361.81,0.00013816,3]
[330758568,1719759042499,-500.0,0.00013816,3]
[330758571,1719759042509,-500.0,0.00013816,3]
[330758572,1719759042518,-500.0,0.00013816,3]
[330758574,1719759042528,-500.0,0.00013816,3]
[330758577,1719759042537,-500.0,0.00013816,3]
[330758578,1719759042546,-500.0,0.00013816,3]
[330758580,1719759042556,-500.0,0.00013816,3]
[330758583,1719759042566,-500.0,0.00013816,3]
[330758585,1719759042576,-500.0,0.00013816,3]
[330758587,1719759042585,-500.0,0.00013816,3]
[330758589,1719759042594,-500.0,0.00013816,3]
[330758591,1719759042603,-500.0,0.00013816,3]
[330758593,1719759042612,-500.0,0.00013816,3]
[330758595,1719759042622,-500.0,0.00013816,3]
[330758596,1719759042631,-500.0,0.00013816,3]
[330758598,1719759042640,-500.0,0.00013816,3]
[330758600,1719759042649,-500.0,0.00013816,3]
[330758603,1719759042659,-490.62,0.00013816,3]
[330758604,1719759042669,-1188.84859951,0.00013817,2]
[330758607,1719759042679,-526.48485008,0.00013849,2]
[330758609,1719759042688,-196.31662455,0.00013849,2]
[330758611,1719759042697,-647.26467047,0.00013849,2]
[330758613,1719759042708,-237.89260728,0.00013849,2]
[330758615,1719759042717,-159.89671167,0.00013889,2]
[330758617,1719759042726,-155.0,0.00013889,2]
[330758618,1719759042735,-2004.0866,0.00013899,2]
[330758619,1719759042746,-174.49944535,0.00013899,2]
[330758620,1719759042755,-154.69077124,0.00013899,2]
[330758621,1719759042765,-168.07414263,0.00013899,2]
[330758622,1719759042774,-248.13765487,0.00013899,2]
[330758623,1719759042784,-154.6907712,0.00013906,2]